fUSD/lending_fUSD_20260506
["ID","MTS","AMOUNT","RATE_DAILY","PERIOD"]
[421717947,1778058645000,-1000.0,0.0003247,2]
[421717950,1778058645000,-1000.0,0.00032472,2]
[421717949,1778058645000,-1000.0,0.0003247,2]
[421717945,1778058645000,-1000.0,0.0003247,2]
[421717962,1778058645000,-254.415554,0.00032877,7]
[421717946,1778058645000,-1000.0,0.0003247,2]
[421717952,1778058645000,-1000.0,0.00032472,2]
[421717958,1778058645000,-150.0,0.00032562,2]
[421717956,1778058645000,-172.43213,0.00032529,14]
[421717957,1778058645000,-501.0,0.00032559,7]
[421717959,1778058645000,-2000.0,0.00032685,30]
[421717966,1778058645000,-500.0,0.00032899,2]
[421717967,1778058645000,-1000.0,0.000329,2]
[421717964,1778058645000,-500.0,0.00032877,60]
[421717965,1778058645000,-206.6226266,0.00032877,120]
[421717960,1778058645000,-254.415554,0.00032877,7]
[421717963,1778058645000,-254.415554,0.00032877,7]
[421717969,1778058645000,-150.0,0.00032968,2]
[421717979,1778058645000,-333.0,0.00032987,2]
[421717943,1778058645000,-216.0,0.00032307,2]
[421717968,1778058645000,-500.0,0.00032959,2]
[421717961,1778058645000,-254.415554,0.00032877,7]
[421717954,1778058645000,-2000.0,0.00032501,2]
[421717931,1778058645000,-920.0,0.00032234,30]
[421717939,1778058645000,-906.55636512,0.000323,2]
[421717976,1778058645000,-250.0,0.00032987,2]
[421717921,1778058645000,-228.54053186,0.00032,120]
[421717915,1778058645000,-2000.0,0.0003189,30]
[421717916,1778058645000,-4874.2686509,0.00031911,2]
[421717917,1778058645000,-414.34244705,0.00031978,2]
[421717918,1778058645000,-461.9,0.00031988,7]
[421717919,1778058645000,-348.0388494,0.00032,120]
[421717920,1778058645000,-170.65778924,0.00032,120]
[421717922,1778058645000,-905.40154626,0.00032,120]
[421717924,1778058645000,-303.65666003,0.00032,120]
[421717925,1778058645000,-2570.72580241,0.00032,120]
[421717930,1778058645000,-152.0,0.00032234,30]
[421717944,1778058645000,-152.0,0.00032402,8]
[421717928,1778058645000,-333.0,0.00032099,2]
[421717929,1778058645000,-256.6,0.0003221,5]
[421717923,1778058645000,-1111.52520475,0.00032,120]
[421717926,1778058645000,-214.60306816,0.00032,30]
[421717933,1778058645000,-156.0,0.00032235,30]
[421717932,1778058645000,-174.0,0.00032235,30]
[421717938,1778058645000,-242.0,0.0003224,2]
[421717941,1778058645000,-151.01006351,0.00032305,2]
[421717934,1778058645000,-212.0,0.00032235,30]
[421717937,1778058645000,-244.81327161,0.0003224,2]
[421717935,1778058645000,-378.0,0.00032236,30]
[421717940,1778058645000,-2000.0,0.00032301,30]
[421717936,1778058645000,-151.0,0.00032236,30]
[421717927,1778058645000,-151.0,0.00032097,7]
[421717970,1778058645000,-251.0,0.00032968,2]
[421717942,1778058645000,-249.98513785,0.00032307,2]
[421717973,1778058645000,-250.0,0.00032987,2]
[421718007,1778058645000,-164.35212,0.00033233,7]
[421718008,1778058645000,-164.35212,0.00033233,7]
[421718009,1778058645000,-152.845418,0.00033233,7]
[421718010,1778058645000,-600.44,0.00033233,7]
[421718011,1778058645000,-152.0,0.00033234,30]
[421718012,1778058645000,-920.0,0.00033234,30]
[421718013,1778058645000,-174.0,0.00033235,30]
[421718018,1778058645000,-501.0,0.00033237,8]
[421718015,1778058645000,-212.0,0.00033235,30]
[421718014,1778058645000,-156.0,0.00033235,30]
[421718017,1778058645000,-151.0,0.00033236,30]
[421718020,1778058645000,-1535.0,0.00033389,7]
[421718033,1778058645000,-1104.10525001,0.00033538,4]
[421718028,1778058645000,-151.0,0.00033479,7]
[421718025,1778058645000,-233.616306,0.000334,7]
[421718021,1778058645000,-151.0,0.000334,7]
[421718022,1778058645000,-151.0,0.000334,7]
[421718027,1778058645000,-4000.0,0.00033479,60]
[421718023,1778058645000,-151.0,0.000334,7]
[421718029,1778058645000,-222.473895,0.00033479,7]
[421718026,1778058645000,-151.0,0.000334,7]
[421718024,1778058645000,-151.0,0.000334,7]
[421718030,1778058645000,-222.473895,0.00033479,7]
[421718032,1778058645000,-222.473895,0.00033479,7]
[421718031,1778058645000,-222.473895,0.00033479,7]
[421717972,1778058645000,-250.0,0.00032987,2]
[421718019,1778058645000,-152.0,0.00033257,9]
[421717997,1778058645000,-250.0,0.00033227,2]
[421718016,1778058645000,-378.0,0.00033236,30]
[421717998,1778058645000,-250.0,0.00033227,2]
[421717977,1778058645000,-250.0,0.00032987,2]
[421718000,1778058645000,-209.0,0.00033227,2]
[421717974,1778058645000,-250.0,0.00032987,2]
[421717971,1778058645000,-250.0,0.00032987,2]
[421717975,1778058645000,-250.0,0.00032987,2]
[421717978,1778058645000,-250.0,0.00032987,2]
[421717980,1778058645000,-348.0388494,0.00033,120]
[421717981,1778058645000,-170.65778924,0.00033,120]
[421717983,1778058645000,-228.54053186,0.00033,120]
[421717986,1778058645000,-1111.52520475,0.00033,120]
[421717989,1778058645000,-4000.0,0.00033068,60]
[421717987,1778058645000,-2570.72580241,0.00033,120]
[421717988,1778058645000,-570.278457,0.00033,14]
[421717990,1778058645000,-283.38513938,0.00033133,3]
[421717985,1778058645000,-905.40154626,0.00033,120]
[421718002,1778058645000,-302.856741,0.00033233,7]
[421717992,1778058645000,-250.0,0.00033227,2]
[421717996,1778058645000,-250.0,0.00033227,2]
[421717999,1778058645000,-250.0,0.00033227,2]
[421717995,1778058645000,-250.0,0.00033227,2]
[421717994,1778058645000,-250.0,0.00033227,2]
[421718006,1778058645000,-302.856741,0.00033233,7]
[421718003,1778058645000,-164.35212,0.00033233,7]
[421718004,1778058645000,-302.856741,0.00033233,7]
[421717993,1778058645000,-250.0,0.00033227,2]
[421717991,1778058645000,-310.0,0.00033134,28]
[421718005,1778058645000,-164.35212,0.00033233,7]
[421718001,1778058645000,-302.856741,0.00033233,7]
[421718077,1778058646000,-164.23,0.00034446,2]
[421718070,1778058646000,-378.0,0.00034236,30]
[421718074,1778058646000,-164.23,0.00034446,2]
[421718069,1778058646000,-212.0,0.00034235,30]
[421718073,1778058646000,-8104.95109951,0.00034357,2]
[421718063,1778058646000,-256.6,0.00034182,7]
[421718067,1778058646000,-174.0,0.00034235,30]
[421718081,1778058646000,-164.23,0.00034446,2]
[421718079,1778058646000,-164.23,0.00034446,2]
[421718068,1778058646000,-156.0,0.00034235,30]
[421718071,1778058646000,-151.0,0.00034236,30]
[421718075,1778058646000,-164.23,0.00034446,2]
[421718072,1778058646000,-4000.0,0.00034247,60]
[421718092,1778058646000,-164.27,0.0003445,2]
[421718083,1778058646000,-164.23,0.00034448,2]
[421718097,1778058646000,-164.23,0.0003445,2]
[421718089,1778058646000,-164.23,0.00034448,2]
[421718098,1778058646000,-164.23,0.0003445,2]
[421718094,1778058646000,-164.23,0.0003445,2]
[421718084,1778058646000,-164.23,0.00034448,2]
[421718082,1778058646000,-164.23,0.00034448,2]
[421718096,1778058646000,-164.23,0.0003445,2]
[421718085,1778058646000,-164.23,0.00034448,2]
[421718091,1778058646000,-164.23,0.00034448,2]
[421718087,1778058646000,-164.23,0.00034448,2]
[421718061,1778058646000,-414.34244705,0.00034057,2]
[421718076,1778058646000,-164.23,0.00034446,2]
[421718062,1778058646000,-152.0,0.00034113,10]
[421718039,1778058646000,-800.0,0.00033557,2]
[421718066,1778058646000,-920.0,0.00034234,30]
[421718099,1778058646000,-164.23,0.0003445,2]
[421718041,1778058646000,-800.0,0.00033557,2]
[421718035,1778058646000,-800.0,0.00033557,2]
[421718037,1778058646000,-800.0,0.00033557,2]
[421718040,1778058646000,-800.0,0.00033557,2]
[421718034,1778058646000,-800.0,0.00033557,2]
[421718036,1778058646000,-800.0,0.00033557,2]
[421718043,1778058646000,-698.0,0.00033557,2]
[421718044,1778058646000,-350.0,0.00033753,2]
[421718046,1778058646000,-154.0,0.00033869,2]
[421718045,1778058646000,-4000.0,0.00033863,60]
[421718042,1778058646000,-800.0,0.00033557,2]
[421718048,1778058646000,-170.65778924,0.000339,120]
[421718047,1778058646000,-348.0388494,0.000339,120]
[421718049,1778058646000,-228.54053186,0.000339,120]
[421718050,1778058646000,-905.40154626,0.000339,120]
[421718054,1778058646000,-900.0,0.000339,12]
[421718053,1778058646000,-2500.0,0.000339,12]
[421718052,1778058646000,-2570.72580241,0.000339,120]
[421718051,1778058646000,-1111.52520475,0.000339,120]
[421718064,1778058646000,-150.0,0.0003419,2]
[421718056,1778058646000,-350.0,0.00033967,2]
[421718058,1778058646000,-331.5694761,0.00034012,60]
[421718055,1778058646000,-501.0,0.00033914,9]
[421718057,1778058646000,-283.6996602,0.00034012,60]
[421718065,1778058646000,-152.0,0.00034234,30]
[421718059,1778058646000,-254.522855,0.00034012,60]
[421718060,1778058646000,-271.5036769,0.00034012,60]
[421718100,1778058646000,-164.23,0.0003445,2]
[421718038,1778058646000,-800.0,0.00033557,2]
[421718101,1778058646000,-1885.06854802,0.00034465,7]
[421718134,1778058646000,-200.0,0.00034768,10]
[421718137,1778058646000,-13329.07,0.0003487,30]
[421718139,1778058646000,-152.0,0.00034968,11]
[421718140,1778058646000,-500.0,0.00034999,2]
[421718147,1778058646000,-180.273,0.00035,2]
[421718138,1778058646000,-773.46239503,0.0003488,120]
[421718136,1778058646000,-310.0,0.00034827,37]
[421718142,1778058646000,-170.65778924,0.00035,120]
[421718141,1778058646000,-348.0388494,0.00035,120]
[421718145,1778058646000,-1111.52520475,0.00035,120]
[421718143,1778058646000,-228.54053186,0.00035,120]
[421718146,1778058646000,-150.0,0.00035,2]
[421718135,1778058646000,-1500.0,0.00034795,2]
[421718144,1778058646000,-905.40154626,0.00035,120]
[421718150,1778058646000,-2646.65350668,0.00035,14]
[421718152,1778058646000,-21744.09,0.00035,7]
[421718149,1778058646000,-1945.54516062,0.00035,2]
[421718151,1778058646000,-19502.82352349,0.00035,120]
[421718153,1778058646000,-214.60306816,0.00035,7]
[421718154,1778058646000,-368.73901256,0.0003501,2]
[421718155,1778058646000,-151.0,0.00035038,14]
[421718156,1778058646000,-2000.0,0.00035041,60]
[421718159,1778058646000,-262.686372,0.00035041,7]
[421718157,1778058646000,-262.686372,0.00035041,7]
[421718160,1778058646000,-262.686372,0.00035041,7]
[421718161,1778058646000,-617.196269,0.00035041,7]
[421718148,1778058646000,-2570.72580241,0.00035,120]
[421718129,1778058646000,-2000.0,0.000347,57]
[421718158,1778058646000,-262.686372,0.00035041,7]
[421718132,1778058646000,-2000.0,0.000347,57]
[421718130,1778058646000,-2000.0,0.000347,57]
[421718106,1778058646000,-619.014766,0.000345,7]
[421718111,1778058646000,-151.0,0.000345,7]
[421718105,1778058646000,-619.014766,0.000345,7]
[421718102,1778058646000,-600.44,0.00034499,7]
[421718104,1778058646000,-619.014766,0.000345,7]
[421718109,1778058646000,-151.0,0.000345,7]
[421718110,1778058646000,-151.0,0.000345,7]
[421718107,1778058646000,-619.014766,0.000345,7]
[421718108,1778058646000,-151.0,0.000345,7]
[421718113,1778058646000,-151.0,0.000345,7]
[421718115,1778058646000,-300.0,0.00034537,2]
[421718117,1778058646000,-300.0,0.00034537,2]
[421718116,1778058646000,-300.0,0.00034537,2]
[421718103,1778058646000,-21744.09,0.000345,7]
[421718119,1778058646000,-300.0,0.00034537,2]
[421718112,1778058646000,-151.0,0.000345,7]
[421718128,1778058646000,-2000.0,0.000347,57]
[421718127,1778058646000,-4000.0,0.00034658,60]
[421718126,1778058646000,-156.64,0.00034604,2]
[421718125,1778058646000,-501.0,0.00034592,10]
[421718131,1778058646000,-2000.0,0.000347,57]
[421718122,1778058646000,-300.0,0.00034537,2]
[421718114,1778058646000,-300.0,0.00034537,2]
[421718123,1778058646000,-221.0,0.00034537,2]
[421718120,1778058646000,-300.0,0.00034537,2]
[421718133,1778058646000,-2000.0,0.000347,57]
[421718121,1778058646000,-300.0,0.00034537,2]
[421718118,1778058646000,-300.0,0.00034537,2]
[421718200,1778058647000,-8747.74729411,0.00035208,2]
[421718189,1778058647000,-642.905357,0.00035049,7]
[421718194,1778058647000,-218.23267,0.00035049,7]
[421718192,1778058647000,-642.905357,0.00035049,7]
[421718190,1778058647000,-642.905357,0.00035049,7]
[421718191,1778058647000,-642.905357,0.00035049,7]
[421718197,1778058647000,-254.415554,0.00035049,7]
[421718196,1778058647000,-254.415554,0.00035049,7]
[421718198,1778058647000,-254.415554,0.00035049,7]
[421718199,1778058647000,-1500.0,0.000352,7]
[421718193,1778058647000,-151.0,0.00035049,7]
[421718204,1778058647000,-151.0,0.00035234,7]
[421718203,1778058647000,-151.0,0.00035234,7]
[421718210,1778058647000,-378.0,0.00035236,30]
[421718202,1778058647000,-151.0,0.00035234,7]
[421718188,1778058647000,-806.59534517,0.00035049,2]
[421718205,1778058647000,-152.0,0.00035234,30]
[421718208,1778058647000,-156.0,0.00035235,30]
[421718209,1778058647000,-212.0,0.00035235,30]
[421718206,1778058647000,-920.0,0.00035234,30]
[421718207,1778058647000,-174.0,0.00035235,30]
[421718214,1778058647000,-659.0,0.00035371,30]
[421718216,1778058647000,-995.0,0.00035371,30]
[421718201,1778058647000,-151.0,0.00035234,7]
[421718195,1778058647000,-254.415554,0.00035049,7]
[421718178,1778058647000,-1000.0,0.00035049,2]
[421718187,1778058647000,-1000.0,0.00035049,2]
[421718211,1778058647000,-151.0,0.00035236,30]
[421718166,1778058647000,-1000.0,0.00035049,2]
[421718162,1778058647000,-617.196269,0.00035041,7]
[421718167,1778058647000,-1000.0,0.00035049,2]
[421718170,1778058647000,-1000.0,0.00035049,2]
[421718163,1778058647000,-617.196269,0.00035041,7]
[421718171,1778058647000,-1000.0,0.00035049,2]
[421718168,1778058647000,-1000.0,0.00035049,2]
[421718164,1778058647000,-617.196269,0.00035041,7]
[421718169,1778058647000,-1000.0,0.00035049,2]
[421718165,1778058647000,-151.0,0.00035041,7]
[421718173,1778058647000,-1000.0,0.00035049,2]
[421718176,1778058647000,-1000.0,0.00035049,2]
[421718174,1778058647000,-1000.0,0.00035049,2]
[421718182,1778058647000,-1000.0,0.00035049,2]
[421718172,1778058647000,-1000.0,0.00035049,2]
[421718183,1778058647000,-1000.0,0.00035049,2]
[421718175,1778058647000,-1000.0,0.00035049,2]
[421718177,1778058647000,-1000.0,0.00035049,2]
[421718179,1778058647000,-1000.0,0.00035049,2]
[421718180,1778058647000,-1000.0,0.00035049,2]
[421718184,1778058647000,-1000.0,0.00035049,2]
[421718186,1778058647000,-1000.0,0.00035049,2]
[421718185,1778058647000,-1000.0,0.00035049,2]
[421718181,1778058647000,-1000.0,0.00035049,2]
[421718213,1778058647000,-350.0,0.00035361,2]
[421718217,1778058647000,-302.856741,0.00035401,7]
[421718242,1778058647000,-500.0,0.00035616,5]
[421718247,1778058647000,-150.322,0.00035858,2]
[421718246,1778058647000,-1268.0,0.00035858,2]
[421718257,1778058647000,-150.0,0.00035901,7]
[421718248,1778058647000,-1221.0,0.00035858,2]
[421718252,1778058647000,-150.0,0.00035901,7]
[421718250,1778058647000,-484.23038226,0.000359,30]
[421718255,1778058647000,-150.0,0.00035901,7]
[421718249,1778058647000,-150.0,0.00035899,2]
[421718254,1778058647000,-150.0,0.00035901,7]
[421718251,1778058647000,-150.0,0.00035901,30]
[421718241,1778058647000,-4497.93819322,0.0003561,2]
[421718253,1778058647000,-150.0,0.00035901,7]
[421718260,1778058647000,-500.0,0.00035999,2]
[421718258,1778058647000,-150.0,0.00035901,7]
[421718262,1778058647000,-274.95850481,0.00036,120]
[421718263,1778058647000,-348.0388494,0.00036,120]
[421718268,1778058647000,-563.85,0.00036038,10]
[421718267,1778058647000,-2570.72580241,0.00036,120]
[421718264,1778058647000,-228.54053186,0.00036,120]
[421718266,1778058647000,-1111.52520475,0.00036,120]
[421718261,1778058647000,-50000.0,0.00036,2]
[421718265,1778058647000,-905.40154626,0.00036,120]
[421718221,1778058647000,-164.35212,0.00035401,7]
[421718259,1778058647000,-501.0,0.00035947,11]
[421718240,1778058647000,-925.0,0.00035547,2]
[421718256,1778058647000,-150.0,0.00035901,7]
[421718237,1778058647000,-350.0,0.00035476,2]
[421718212,1778058647000,-501.0,0.0003527,10]
[421718243,1778058647000,-500.0,0.00035616,5]
[421718222,1778058647000,-302.856741,0.00035401,7]
[421718219,1778058647000,-164.35212,0.00035401,7]
[421718215,1778058647000,-595.0,0.00035371,30]
[421718220,1778058647000,-302.856741,0.00035401,7]
[421718218,1778058647000,-302.856741,0.00035401,7]
[421718223,1778058647000,-164.35212,0.00035401,7]
[421718225,1778058647000,-151.0,0.00035401,7]
[421718226,1778058647000,-222.473895,0.00035401,7]
[421718227,1778058647000,-222.473895,0.00035401,7]
[421718229,1778058647000,-222.473895,0.00035401,7]
[421718224,1778058647000,-164.35212,0.00035401,7]
[421718228,1778058647000,-222.473895,0.00035401,7]
[421718245,1778058647000,-152.0,0.00035823,12]
[421718235,1778058647000,-151.0,0.00035456,7]
[421718239,1778058647000,-670.44,0.00035547,2]
[421718244,1778058647000,-160.68,0.00035616,2]
[421718236,1778058647000,-350.0,0.00035472,2]
[421718238,1778058647000,-600.44,0.00035499,7]
[421718233,1778058647000,-5000.0,0.00035401,2]
[421718230,1778058647000,-5071.16480076,0.00035401,2]
[421718232,1778058647000,-5000.0,0.00035401,2]
[421718231,1778058647000,-5000.0,0.00035401,2]
[421718234,1778058647000,-5000.0,0.00035401,2]
[421718312,1778058648000,-619.014766,0.00036696,7]
[421718307,1778058648000,-984.86,0.00036681,10]
[421718309,1778058648000,-619.014766,0.00036696,7]
[421718308,1778058648000,-925.08,0.00036696,10]
[421718303,1778058648000,-501.0,0.00036625,12]
[421718298,1778058648000,-159.97,0.00036537,2]
[421718304,1778058648000,-150.0,0.00036627,7]
[421718300,1778058648000,-191.68,0.00036537,2]
[421718301,1778058648000,-3772.22319857,0.00036605,30]
[421718302,1778058648000,-350.0,0.00036609,2]
[421718315,1778058648000,-151.0,0.00036696,7]
[421718324,1778058648000,-150.0,0.00036899,7]
[421718313,1778058648000,-151.0,0.00036696,7]
[421718321,1778058648000,-1634.5399902,0.000368,2]
[421718317,1778058648000,-151.0,0.00036696,7]
[421718310,1778058648000,-619.014766,0.00036696,7]
[421718316,1778058648000,-151.0,0.00036696,7]
[421718311,1778058648000,-619.014766,0.00036696,7]
[421718314,1778058648000,-151.0,0.00036696,7]
[421718320,1778058648000,-1000.0,0.00036712,5]
[421718328,1778058648000,-2000.0,0.00036986,60]
[421718329,1778058648000,-600.0,0.00036986,120]
[421718330,1778058648000,-600.0,0.00036986,120]
[421718323,1778058648000,-1163.59,0.00036897,10]
[421718326,1778058648000,-150.0,0.00036965,7]
[421718327,1778058648000,-1724.4,0.00036981,10]
[421718305,1778058648000,-150.0,0.00036649,7]
[421718318,1778058648000,-151.0,0.00036696,7]
[421718297,1778058648000,-1000.0,0.00036438,5]
[421718280,1778058648000,-150.0,0.00036221,2]
[421718296,1778058648000,-150.0,0.00036433,7]
[421718278,1778058648000,-150.0,0.00036167,7]
[421718279,1778058648000,-150.0,0.00036221,2]
[421718269,1778058648000,-1629.43,0.00036075,10]
[421718270,1778058648000,-350.0,0.00036083,2]
[421718272,1778058648000,-3625.0,0.00036102,2]
[421718274,1778058648000,-150.0,0.00036151,7]
[421718271,1778058648000,-6043.0,0.00036102,2]
[421718273,1778058648000,-414.34244705,0.00036135,2]
[421718275,1778058648000,-256.6,0.00036153,30]
[421718276,1778058648000,-226.38831893,0.00036164,2]
[421718277,1778058648000,-762.0,0.00036164,2]
[421718281,1778058648000,-252.0,0.00036221,2]
[421718282,1778058648000,-152.0,0.00036234,30]
[421718283,1778058648000,-920.0,0.00036234,30]
[421718286,1778058648000,-212.0,0.00036235,30]
[421718284,1778058648000,-174.0,0.00036235,30]
[421718285,1778058648000,-156.0,0.00036235,30]
[421718288,1778058648000,-151.0,0.00036236,30]
[421718287,1778058648000,-378.0,0.00036236,30]
[421718289,1778058648000,-310.0,0.00036243,40]
[421718290,1778058648000,-150.0,0.00036264,7]
[421718293,1778058648000,-30175.11,0.00036362,60]
[421718292,1778058648000,-272.43,0.00036316,10]
[421718291,1778058648000,-156.35,0.000363,30]
[421718306,1778058648000,-152.0,0.00036679,13]
[421718294,1778058648000,-150.0,0.000364,7]
[421718295,1778058648000,-680.73,0.00036403,10]
[421718299,1778058648000,-436.37,0.00036537,2]
[421718322,1778058648000,-2500.0,0.00036859,10]
[421718348,1778058648000,-156.0,0.00037235,30]
[421718325,1778058648000,-350.0,0.00036934,2]
[421718362,1778058648000,-152.0,0.00037534,14]
[421718360,1778058648000,-150.0,0.00037497,7]
[421718365,1778058648000,-4400.98482659,0.0003759,2]
[421718366,1778058648000,-150.0,0.00037647,7]
[421718367,1778058648000,-302.856741,0.00037678,7]
[421718369,1778058648000,-164.35212,0.00037678,7]
[421718368,1778058648000,-302.856741,0.00037678,7]
[421718370,1778058648000,-302.856741,0.00037678,7]
[421718371,1778058648000,-164.35212,0.00037678,7]
[421718372,1778058648000,-302.856741,0.00037678,7]
[421718373,1778058648000,-164.35212,0.00037678,7]
[421718375,1778058648000,-150.0,0.00037694,2]
[421718380,1778058648000,-1000.0,0.000378,7]
[421718374,1778058648000,-164.35212,0.00037678,7]
[421718377,1778058648000,-150.0,0.00037763,7]
[421718379,1778058648000,-1000.0,0.000378,7]
[421718376,1778058648000,-150.0,0.00037715,7]
[421718381,1778058648000,-1000.0,0.000378,7]
[421718386,1778058648000,-1000.0,0.000378,7]
[421718389,1778058648000,-151.0,0.000378,7]
[421718383,1778058648000,-1000.0,0.000378,7]
[421718384,1778058648000,-1000.0,0.000378,7]
[421718385,1778058648000,-1000.0,0.000378,7]
[421718387,1778058648000,-1000.0,0.000378,7]
[421718382,1778058648000,-1000.0,0.000378,7]
[421718388,1778058648000,-151.0,0.000378,7]
[421718319,1778058648000,-150.0,0.00036699,7]
[421718358,1778058648000,-156.35,0.000374,30]
[421718364,1778058648000,-275.0,0.00037548,2]
[421718378,1778058648000,-1000.0,0.000378,7]
[421718357,1778058648000,-150.0,0.00037397,7]
[421718363,1778058648000,-1078.6624077,0.00037547,30]
[421718333,1778058648000,-435.0,0.00036986,120]
[421718334,1778058648000,-150.0,0.00036989,7]
[421718335,1778058648000,-365.0,0.00037,2]
[421718337,1778058648000,-4500.0,0.00037,2]
[421718339,1778058648000,-500.0,0.0003711,30]
[421718332,1778058648000,-600.0,0.00036986,120]
[421718338,1778058648000,-2570.72580241,0.000371,120]
[421718336,1778058648000,-4685.30481988,0.00037,3]
[421718340,1778058648000,-8104.95109951,0.00037128,2]
[421718342,1778058648000,-169.58,0.00037203,2]
[421718341,1778058648000,-150.0,0.00037148,7]
[421718343,1778058648000,-150.0,0.00037231,7]
[421718349,1778058648000,-212.0,0.00037235,30]
[421718331,1778058648000,-600.0,0.00036986,120]
[421718355,1778058648000,-350.0,0.00037347,2]
[421718354,1778058648000,-501.0,0.00037303,13]
[421718347,1778058648000,-174.0,0.00037235,30]
[421718353,1778058648000,-350.0,0.00037294,2]
[421718350,1778058648000,-378.0,0.00037236,30]
[421718351,1778058648000,-151.0,0.00037236,30]
[421718352,1778058648000,-1500.0,0.0003726,5]
[421718346,1778058648000,-920.0,0.00037234,30]
[421718356,1778058648000,-150.0,0.00037352,7]
[421718344,1778058648000,-150.0,0.00037231,7]
[421718345,1778058648000,-152.0,0.00037234,30]
[421718359,1778058648000,-310.0,0.00037426,45]
[421718361,1778058648000,-600.44,0.00037511,7]
[421718430,1778058649000,-300.0,0.00038201,2]
[421718431,1778058649000,-300.0,0.00038201,2]
[421718424,1778058649000,-542.43928197,0.00038201,2]
[421718433,1778058649000,-603.45144378,0.00038201,2]
[421718432,1778058649000,-300.0,0.00038201,2]
[421718428,1778058649000,-300.0,0.00038201,2]
[421718425,1778058649000,-300.0,0.00038201,2]
[421718421,1778058649000,-2570.72580241,0.000382,120]
[421718427,1778058649000,-491.85958444,0.00038201,2]
[421718423,1778058649000,-300.0,0.00038201,2]
[421718419,1778058649000,-151.0,0.00038195,7]
[421718429,1778058649000,-363.42720589,0.00038201,2]
[421718426,1778058649000,-300.000001,0.00038201,2]
[421718434,1778058649000,-300.0,0.00038201,2]
[421718442,1778058649000,-309.13065885,0.00038201,2]
[421718437,1778058649000,-526.86051061,0.00038201,2]
[421718435,1778058649000,-300.0,0.00038201,2]
[421718438,1778058649000,-300.0,0.00038201,2]
[421718436,1778058649000,-476.87909536,0.00038201,2]
[421718440,1778058649000,-891.9241332,0.00038201,2]
[421718441,1778058649000,-300.0,0.00038201,2]
[421718447,1778058649000,-300.0,0.00038201,2]
[421718443,1778058649000,-724.83131769,0.00038201,2]
[421718444,1778058649000,-300.0,0.00038201,2]
[421718449,1778058649000,-300.0,0.00038201,2]
[421718450,1778058649000,-300.0,0.00038201,2]
[421718446,1778058649000,-300.0,0.00038201,2]
[421718439,1778058649000,-1065.13491717,0.00038201,2]
[421718422,1778058649000,-500.0,0.000382,2]
[421718390,1778058649000,-151.0,0.000378,7]
[421718418,1778058649000,-150.0,0.00038145,7]
[421718448,1778058649000,-300.06118393,0.00038201,2]
[421718391,1778058649000,-151.0,0.000378,7]
[421718393,1778058649000,-222.473895,0.000378,7]
[421718392,1778058649000,-151.0,0.000378,7]
[421718404,1778058649000,-617.196269,0.00037848,7]
[421718394,1778058649000,-222.473895,0.000378,7]
[421718395,1778058649000,-222.473895,0.000378,7]
[421718401,1778058649000,-262.686372,0.00037848,7]